fUSD/lending_fUSD_20240502
["ID","MTS","AMOUNT","RATE_DAILY","PERIOD"]
[325245352,1714636233177,-1354.5632489,0.00012998,2]
[325245353,1714636233189,-162.08193255,0.00012998,2]
[325245354,1714636233200,-1889.08592415,0.00012998,2]
[325245355,1714636233209,-2131.77586828,0.00012998,2]
[325245356,1714636233219,-214.76172106,0.00012998,2]
[325245357,1714636233230,-521.0,0.00012998,2]
[325245358,1714636233240,-169.85843163,0.00012998,2]
[325245359,1714636233249,-393.24546752,0.00012998,2]
[325245360,1714636233258,-443.78973703,0.00012998,2]
[325245361,1714636233267,-155.0,0.00012998,2]
[325245362,1714636233277,-265.68633151,0.00012999,2]
[325245363,1714636233287,-5000.0,0.00012999,2]
[325245364,1714636233298,-4166.66,0.00012999,2]
[325245365,1714636233309,-199.92560251,0.00012999,2]
[325245366,1714636233319,-5000.0,0.00012999,2]
[325245367,1714636233328,-5000.0,0.00012999,2]
[325245368,1714636233337,-5000.0,0.00012999,2]
[325245369,1714636233346,-5000.0,0.00012999,2]
[325245370,1714636233356,-5000.0,0.00012999,2]
[325245371,1714636233366,-5000.0,0.00012999,2]
[325245372,1714636233375,-5000.0,0.00012999,2]
[325245373,1714636233384,-5000.0,0.00012999,2]
[325245374,1714636233394,-5000.0,0.00012999,2]
[325245375,1714636233403,-833.34,0.00012999,2]
[325245376,1714636233412,-1042.15414533,0.00013,2]
[325245377,1714636233425,-432.35315906,0.00013,2]
[325245378,1714636233455,-462934.26285061,0.00013,2]
[325245379,1714636233467,-1615014.27479918,0.00013,2]
[325245380,1714636233476,-858977.85791299,0.00013,2]
[325245381,1714636233488,-46029.73605365,0.00013,2]
[325245382,1714636233500,-540.88171398,0.00013,2]
[325245383,1714636233519,-13226.01023244,0.00013,2]
[325245384,1714636233538,-500.0,0.00013,2]
[325245386,1714636238378,-1235.47644,0.00012757,2]
[325245387,1714636238432,-292.06143761,0.00012757,2]
[325245388,1714636238441,-150.0,0.0001278,2]
[325245389,1714636238451,-450.76641155,0.000129,2]
[325245390,1714636238461,-387.96233521,0.000129,2]
[325245391,1714636238470,-4224.75962467,0.00013,2]
[325245392,1714636238482,-33332.32239814,0.00013,2]
[325245393,1714636238541,-4915.01407927,0.00013,2]
[325245394,1714636238651,-6012.74899797,0.00013,2]
[325245426,1714636240415,-6465.76881577,0.00013,2]
[325245427,1714636240472,-4519.67019031,0.00013,2]
[325245428,1714636240484,-335.55273155,0.00013,2]
[325245429,1714636240527,-349.29093456,0.00013,2]
[325245430,1714636240583,-439.44000001,0.00013,2]
[325245431,1714636240641,-512.0,0.00013,2]
[325245432,1714636240654,-374.56443819,0.00013,2]
[325245433,1714636240743,-642.92,0.00013,2]
[325245458,1714636243379,-1889.08592415,0.00013,2]
[325245459,1714636243842,-3225.27340693,0.00013,2]
[325245460,1714636243915,-13330.656,0.00013,2]
[325245474,1714636246293,-155.0,0.00012999,2]
[325245476,1714636246303,-1684.50603213,0.00013,2]
[325245478,1714636246317,-924.904,0.00013,2]
[325245482,1714636246346,-270.42728545,0.00013,2]
[325245489,1714636246406,-627.44,0.00013,2]
[325245496,1714636246565,-537.07638197,0.00013,2]
[325245497,1714636246622,-1957.3940594,0.00013,2]
[325245543,1714636390931,15284.87974937,0.00011,2]
[325245544,1714636443376,150.0,0.00010993,2]
[325245552,1714636713894,410.71,0.0001611,15]
[325245560,1714637281927,376.48,0.0001611,15]
[325245562,1714637431616,-521.0,0.0001188,2]
[325245563,1714637431626,-527.53885271,0.0001188,2]
[325245564,1714637431635,-159.94622947,0.00011881,2]
[325245565,1714637431645,-111.21612,0.00012,2]
[325245566,1714637431676,-2054.16362999,0.00012,2]
[325245567,1714637431686,-250.0,0.00012309,2]
[325245568,1714637431695,-314.15,0.00012339,2]
[325245569,1714637431705,-1000.0,0.00012339,2]
[325245570,1714637431715,-38.77613757,0.000124,2]
[325245594,1714637437544,-211.22386243,0.000124,2]
[325245595,1714637437553,-250.0,0.00012401,2]
[325245596,1714637437563,-150.0,0.00012605,2]
[325245597,1714637437572,-150.0,0.00012609,2]
[325245598,1714637437804,-1746.52897,0.0001287,2]
[325245599,1714637437814,-10000.0,0.00012888,2]
[325245600,1714637437823,-426.29342299,0.00012888,2]
[325245601,1714637437835,-19.57657701,0.00012888,2]
[325245602,1714637437846,-348.82686159,0.000129,2]
[325245603,1714637437991,-705.281867,0.000129,2]
[325245604,1714637438003,-1171.11856861,0.000129,2]
[325245605,1714637438014,-3714.54366207,0.000129,2]
[325245606,1714637438025,-545.03939917,0.000129,2]
[325245610,1714637439632,-263.66000001,0.000129,2]
[325245611,1714637439794,-650.02239872,0.000129,2]
[325245619,1714637442572,-2601.50724283,0.000129,2]
[325245620,1714637442582,-8047.15673874,0.000129,2]
[325245621,1714637442590,-5228.43040127,0.000129,2]
[325245625,1714637443529,-4136.81654687,0.000129,2]
[325245626,1714637443569,-2968.23823805,0.000129,2]
[325245636,1714637446491,-1073.20807322,0.000129,2]
[325245637,1714637447209,-324.55840843,0.000129,2]
[325245638,1714637447221,-706.18725494,0.000129,2]
[325245639,1714637447238,-214.99401376,0.000129,2]
[325245640,1714637447248,-174.84810604,0.000129,2]
[325245641,1714637447258,-159.94622947,0.000129,2]
[325245642,1714637447267,-201.37325733,0.000129,2]
[325245643,1714637447277,-150.0,0.00012925,2]
[325245644,1714637447286,-170.03852622,0.00012998,2]
[325245645,1714637447296,-685.00649784,0.00012999,2]
[325245646,1714637447305,-265.68633151,0.00012999,2]
[325245647,1714637447315,-1520.16072553,0.00012999,2]
[325245648,1714637447324,-112059.35210151,0.00013,2]
[325245649,1714637524228,150.0,0.00010993,2]
[325245650,1714637763840,345.1,0.0001611,15]
[325245651,1714637904195,-521.0,0.00011999,2]
[325245652,1714637904217,-208.57741257,0.00012,2]
[325245653,1714637908670,154.79,0.00011971,2]
[325245655,1714638297309,800.0,0.00011971,2]
[325245656,1714638346822,3644.32258743,0.00012,2]
[325245657,1714638364224,316.34,0.0001611,15]
[325245658,1714638447793,400.0,0.00011,2]
[325245672,1714638631754,-521.0,0.00011987,2]
[325245673,1714638631764,-143.47322689,0.00011988,2]
[325245674,1714638631827,-122.26884174,0.00011988,2]
[325245675,1714638631837,-301.71042293,0.00011988,2]
[325245676,1714638631848,-301.71042293,0.00011988,2]
[325245677,1714638631859,-158.04,0.0001199,2]
[325245678,1714638631869,-150.0,0.00011999,2]
[325245679,1714638631879,-407575.0,0.00012,2]
[325245680,1714638631892,-4714.72854237,0.000121,2]
[325245681,1714638631903,-170.12,0.00012168,2]
[325245682,1714638631912,-17690.0,0.000122,3]
[325245683,1714638631922,-185.88,0.00012378,2]
[325245684,1714638631932,-250.0,0.00012378,2]
[325245685,1714638631942,-200.0,0.00012423,2]
[325245686,1714638631952,-250.0,0.0001248,2]
[325245687,1714638631961,-17690.0,0.000125,5]
[325245688,1714638631971,-221.8,0.000125,2]
[325245689,1714638631981,-1560.03868352,0.0001265,2]
[325245690,1714638631991,-580.21,0.00012685,2]
[325245691,1714638632000,-1822.42,0.00012712,2]
[325245692,1714638632009,-500.78,0.00012712,2]
[325245693,1714638632019,-3497.19944605,0.00012825,2]
[325245694,1714638632029,-10000.0,0.000129,2]
[325245695,1714638632040,-18498.9622,0.000129,2]
[325245696,1714638632050,-1917.1919,0.000129,2]
[325245697,1714638632060,-13643.16822069,0.000129,2]
[325245698,1714638632070,-8632.6220036,0.000129,2]
[325245699,1714638632079,-258.64155682,0.000129,2]
[325245700,1714638632089,-463.49380628,0.000129,2]
[325245701,1714638632100,-318.78,0.00012976,2]
[325245702,1714638632109,-158.04,0.0001299,2]
[325245703,1714638632119,-158.04,0.0001299,2]
[325245704,1714638632129,-158.04,0.0001299,2]
[325245705,1714638632139,-158.04,0.0001299,2]
[325245706,1714638632150,-158.04,0.0001299,2]
[325245707,1714638632160,-158.04,0.0001299,2]
[325245708,1714638632169,-343.45911395,0.00012998,2]
[325245709,1714638632179,-189.86508504,0.00012998,2]
[325245710,1714638632189,-157.30304109,0.00012998,2]
[325245711,1714638632199,-228.36493802,0.00012998,2]
[325245712,1714638632209,-545.81452134,0.00012998,2]
[325245713,1714638632219,-1566.92187733,0.00012998,2]
[325245714,1714638632230,-190.0,0.00012998,2]
[325245715,1714638632240,-478.60847577,0.00012998,2]
[325245716,1714638632250,-5000.0,0.00012999,2]
[325245717,1714638632259,-500.0,0.00012999,2]
[325245718,1714638632269,-363.50109548,0.00012999,2]
[325245719,1714638632279,-5000.0,0.00012999,2]
[325245720,1714638632290,-2167.81106199,0.00012999,2]
[325245721,1714638632299,-675.0,0.00012999,2]
[325245722,1714638632309,-344712.14000262,0.00013,2]
[325245723,1714638632321,-2649.6225874,0.00013,2]
[325245724,1714638632334,-440.82,0.00013,2]
[325245725,1714638632346,-462.32,0.00013,2]
[325245726,1714638632357,-1988.93159619,0.00013,2]
[325245727,1714638633216,-2784.48495281,0.00013,2]
[325245728,1714638633234,-530.0,0.00013,2]
[325245735,1714638637801,-275.68,0.00013,2]
[325245737,1714638637816,-12237.09312621,0.00013,2]
[325245738,1714638637832,-5950.14032621,0.00013,2]
[325245739,1714638637936,-262.79028685,0.00013,2]
[325245740,1714638637949,-3007.70942994,0.00013,2]
[325245741,1714638637977,-47676.97026289,0.00013,2]
[325245742,1714638638122,-353.50613739,0.00013,2]
[325245750,1714638640139,-583.84889202,0.00013,2]
[325245751,1714638640151,-2035.57206303,0.00013,2]
[325245766,1714638645926,-6326.94924,0.00013,2]
[325245767,1714638646000,-28114.39528322,0.00013,2]
[325245768,1714638646012,-124247.84161948,0.00013,2]
[325245770,1714638836872,289.97,0.0001611,15]
[325245771,1714639234459,1000.0,0.00025,120]
[325245772,1714639312098,265.8,0.0001611,15]
[325245777,1714639787231,243.65,0.0001611,15]
[325245784,1714639832115,-521.0,0.0001177,2]
[325245785,1714639832127,-301.71042293,0.0001177,2]
[325245786,1714639832141,-265.74206863,0.00011771,2]
[325245787,1714639832152,-250.0,0.00011772,2]
[325245788,1714639832162,-45.85047844,0.00011823,2]
[325245789,1714639832175,-594.14952156,0.00011823,2]
[325245790,1714639832184,-1500.0,0.00011823,2]
[325245791,1714639832194,-2450.0,0.00012,3]
[325245792,1714639832203,-250.0,0.00012449,2]
[325245793,1714639832213,-360.0,0.00012525,2]
[325245794,1714639832223,-1611.22288445,0.00012746,2]
[325245795,1714639832235,-1178.90008655,0.00012746,2]
[325245796,1714639832258,-707.07647505,0.00012746,2]
[325245797,1714639832269,-150.0,0.00012814,2]
[325245798,1714639832279,-93.14046047,0.00012895,2]
[325245799,1714639832303,-906.85953953,0.00012895,2]
[325245800,1714639832313,-297.6103698,0.00012895,2]
[325245801,1714639832325,-202.3896302,0.00012895,2]
[325245802,1714639832335,-499.99,0.00012895,2]
[325245803,1714639832344,-1000.0,0.00012896,2]
[325245804,1714639832353,-960.924986,0.00012896,2]
[325245805,1714639832363,-500.0,0.00012896,2]
[325245806,1714639832372,-3132.2846838,0.000129,2]
[325245807,1714639832384,-2365.71554263,0.000129,2]
[325245808,1714639832396,-4501.99977357,0.000129,2]
[325245809,1714639832410,-1785.00662295,0.000129,2]
[325245812,1714639832471,-1245.53009067,0.000129,2]
[325245823,1714639838034,-2011.56551492,0.000129,2]
[325245824,1714639838046,-4957.89777146,0.000129,2]
[325245825,1714639838055,-6621.18081533,0.000129,2]
[325245826,1714639838067,-257.75126904,0.000129,2]
[325245827,1714639838212,-845.02,0.000129,2]
[325245828,1714639838268,-881.11063596,0.000129,2]
[325245829,1714639838442,-378.88143139,0.00011769,2]
[325245836,1714639840574,-450.01300863,0.00011769,2]
[325245837,1714639840598,-274.86063955,0.00011769,2]
[325245881,1714639843164,-1124.81695055,0.00011769,2]
[325245884,1714639843297,-208.84530391,0.00011769,2]
[325245885,1714639843307,-3901.17481522,0.000129,2]
[325245886,1714639843317,-419.48,0.000129,2]
[325245887,1714639843327,-329.87442229,0.000129,2]
[325245888,1714639843337,-172.42770454,0.000129,2]
[325245889,1714639843348,-571.37171296,0.00012998,7]
[325245890,1714639843358,-10152.87594109,0.00012998,2]
[325245891,1714639843383,-163451.86709083,0.00012998,2]
[325245892,1714639843393,-98147.38632245,0.00012999,2]
[325245893,1714639843402,-2702.75496276,0.00013,2]
[325245894,1714639843412,-311.34410862,0.00013,2]
[325245895,1714639843421,-606200.73105263,0.00013,2]
[325245896,1714639843442,-9901.98761922,0.00013,2]
[325245897,1714639843453,-315.315,0.00013,2]
[325245902,1714639844284,-1835.89565874,0.00013,2]
[325245903,1714639844330,-2690.28713345,0.00013,2]
[325245919,1714639846127,-157.7016869,0.00012999,2]
[325245921,1714639846140,-57814.46235104,0.00013,2]
[325245922,1714639846152,-1351.41252935,0.00013,2]
[325245928,1714639847172,-301.71042293,0.00012999,2]
[325245929,1714639847182,-196.69868572,0.00013,2]
[325245930,1714639847194,-507.30573655,0.00013,2]
[325245931,1714639847272,-18453.50087886,0.00013,2]
[325245932,1714639847285,-16989.91276986,0.00013,2]
[325245933,1714639847296,-858.72191135,0.00013,2]
[325245934,1714639847309,-2654.17372556,0.00013,2]
[325245935,1714639847321,-494.17574675,0.00013,2]
[325245936,1714639847353,-541.32120601,0.00013,2]
[325245937,1714639847366,-6301.99999999,0.00013,2]
[325245940,1714639880989,5353.44786718,0.0001,2]
[325245946,1714640171040,366.03902839,0.0001,2]
[325245947,1714640186990,237.17454671,0.0001,2]
[325245950,1714640274138,547.95639853,8e-05,2]
[325245951,1714640320352,223.34,0.0001611,15]
[325245952,1714640830176,204.72,0.0001611,15]
[325245953,1714640929280,-521.0,0.0001167,2]
[325245954,1714640929301,-18690.11333828,0.000119,2]
[325245960,1714641032317,-521.0,0.00011899,2]
[325245961,1714641032327,-27587.39254081,0.000119,2]
[325245962,1714641032337,-251.29,0.00011971,2]
[325245963,1714641032346,-712.0,0.00012,2]
[325245964,1714641032356,-250.0,0.00012332,2]
[325245965,1714641032365,-250.0,0.00012332,2]
[325245966,1714641032374,-914.55,0.00012364,2]
[325245967,1714641032383,-593.84375347,0.00012609,2]
[325245968,1714641032395,-259.1,0.00012609,2]
[325245969,1714641032406,-287.37338502,0.00012609,2]
[325245970,1714641032417,-2039.53989,0.00012609,2]
[325245971,1714641032437,-317.34241756,0.00012609,2]
[325245972,1714641032446,-1560.03868352,0.00012682,2]
[325245973,1714641032455,-657.17034162,0.0001287,2]
[325245974,1714641032467,-776.77245047,0.0001287,2]
[325245975,1714641032488,-479.47140791,0.0001287,2]
[325245976,1714641032498,-358.82459209,0.0001288,2]
[325245984,1714641038570,-1053.03139526,0.0001288,2]
[325245985,1714641038582,-5306.85501265,0.0001288,2]
[325245986,1714641038592,-1455.36,0.0001288,2]
[325245987,1714641038602,-1452.8148,0.00012898,2]
[325245988,1714641038611,-2899.22461512,0.00012899,2]
[325245989,1714641038623,-1219.38852436,0.00012899,2]
[325245990,1714641038635,-284.81811041,0.00012899,2]
[325245991,1714641038689,-493.07175966,0.00012899,2]
[325245992,1714641038701,-6445.50244165,0.00012899,2]
[325245993,1714641038713,-4145.59124893,0.00012899,2]
[325245999,1714641040342,-346.52030681,0.00012899,2]
[325246000,1714641040748,-2913.82987176,0.00012899,2]
[325246001,1714641040794,-312.8125,0.00012899,2]
[325246002,1714641040805,-15919.76262389,0.00012899,2]
[325246003,1714641040816,-2845.27603423,0.00012899,2]
[325246049,1714641043564,-5903.39618935,0.00012899,2]
[325246050,1714641043575,-665.06314835,0.00012899,2]
[325246051,1714641043587,-1258.8160016,0.00012899,2]
[325246052,1714641043598,-4037.77387647,0.00012899,2]
[325246053,1714641043609,-666.78624828,0.00012899,2]
[325246054,1714641043626,-312.8125,0.00012899,2]
[325246061,1714641044263,-6028.62899913,0.00012899,2]
[325246062,1714641044272,-10000.0,0.000129,2]
[325246063,1714641044281,-7553.54425315,0.000129,2]
[325246064,1714641044291,-11464.0510743,0.000129,2]
[325246065,1714641044300,-329.87442224,0.000129,2]
[325246066,1714641044309,-308.99587086,0.000129,2]
[325246067,1714641044320,-131643.37955446,0.0001298,2]
[325246068,1714641044329,-1066.19316164,0.00012998,2]
[325246069,1714641044339,-5272.78308889,0.00012999,2]
[325246070,1714641044348,-99029.84992237,0.00013,2]
[325246071,1714641044358,-1750.66992767,0.00013,2]
[325246072,1714641044367,-10383.149236,0.00013,2]
[325246073,1714641044376,-5456.16286222,0.00013,2]
[325246074,1714641044406,-2662.65999895,0.00013,2]
[325246075,1714641044417,-538.32943223,0.00013,2]
[325246076,1714641044429,-385.32480952,0.00013,2]
[325246077,1714641044470,-2006.15670948,0.00013,2]
[325246095,1714641047720,-332.55378153,0.00012898,2]
[325246096,1714641047744,-188.44621847,0.00012898,2]
[325246097,1714641047753,-62833.44364853,0.00013,2]
[325246098,1714641047765,-1250.80522646,0.00013,2]
[325246099,1714641047805,-15510.00000005,0.00013,2]
[325246100,1714641047818,-6210.20000001,0.00013,2]
[325246101,1714641047829,-457.016208,0.00013,2]
[325246102,1714641047844,-1620.308,0.00013,2]
[325246103,1714641047856,-392.59864996,0.00013,2]
[325246106,1714641159494,192.6509966,0.00015,30]
[325246107,1714641313470,187.66,0.0001611,15]
[325246108,1714641807692,172.02,0.0001611,15]
[325246109,1714641916957,-155.0,0.00011307,2]
[325246110,1714641916979,-5104.822966,0.00011308,2]
[325246111,1714641917001,-521.0,0.00011364,2]
[325246112,1714641917023,-155.0,0.00011365,2]
[325246113,1714641917044,-301.71042293,0.00011365,2]
[325246114,1714641917067,-6000.0,0.00011365,2]
[325246115,1714641929001,-185.88,0.00011526,2]
[325246116,1714641929025,-731.64,0.00011526,2]
[325246117,1714641929050,-150.0,0.00011531,2]
[325246118,1714641929075,-883.88271254,0.00011532,2]
[325246119,1714642049063,200.0,0.00011,2]
[325246127,1714642232232,-521.0,0.00011524,2]
[325246128,1714642232242,-301.71042293,0.00011525,2]
[325246129,1714642232251,-749.58174417,0.00011526,2]
[325246130,1714642232260,-712.99611914,0.00011532,2]
[325246131,1714642232286,-540.88171398,0.00011532,2]
[325246132,1714642232409,-835.36945434,0.00011532,2]
[325246133,1714642232419,-238.2,0.00011605,2]
[325246134,1714642232428,-481.04,0.00011626,2]
[325246135,1714642232437,-750.01359666,0.00011698,2]
[325246136,1714642232447,-152.52,0.00011781,2]
[325246137,1714642232456,-150.0,0.00011808,2]
[325246138,1714642232466,-864.76,0.00011809,2]
[325246139,1714642232475,-150.99,0.00011809,2]
[325246140,1714642232484,-250.0,0.00011809,2]
[325246141,1714642232495,-200.0,0.00011809,2]
[325246143,1714642232505,-228.57,0.00011858,2]
[325246144,1714642232514,-150.99,0.00011858,2]
[325246145,1714642232523,-152.52,0.00011904,2]
[325246146,1714642232531,-1519.08174603,0.00012,2]
[325246148,1714642232540,-152.52,0.00012027,2]
[325246150,1714642232549,-414.28,0.000121,2]
[325246152,1714642232558,-911.44,0.000121,2]
[325246154,1714642232567,-350.77,0.000121,2]
[325246156,1714642232576,-152.52,0.00012149,2]
[325246158,1714642232590,-483.21,0.00012178,2]
[325246159,1714642232599,-122.34975807,0.00012248,2]
[325246162,1714642232610,-128.97024193,0.00012248,2]
[325246164,1714642232619,-152.52,0.00012272,2]
[325246166,1714642232629,-956.86886197,0.00012348,2]
[325246168,1714642232638,-32.9010456,0.00012395,2]
[325246170,1714642232649,-119.6189544,0.00012395,2]
[325246171,1714642232658,-418.50949724,0.00012653,2]
[325246173,1714642232669,-3078.68994881,0.00012653,2]
[325246174,1714642232679,-166.57,0.00012696,2]
[325246175,1714642232690,-1560.03868352,0.00012774,2]
[325246176,1714642232699,-1976.15633,0.0001287,2]
[325246177,1714642232708,-484.4769,0.0001288,2]
[325246178,1714642232718,-23734.4122,0.0001288,2]
[325246179,1714642232727,-1000.0,0.0001288,2]
[325246180,1714642232737,-1496.5035,0.0001288,2]
[325246181,1714642232747,-500.0,0.00012895,2]
[325246182,1714642232758,-1000.0,0.00012896,2]
[325246183,1714642232768,-500.0,0.00012896,2]
[325246184,1714642232778,-279.01863078,0.000129,2]
[325246185,1714642232787,-11756.83587123,0.000129,2]
[325246186,1714642232796,-2500.0,0.000129,2]
[325246187,1714642232804,-731.64,0.00012966,2]
[325246188,1714642232814,-1485.85,0.0001298,2]
[325246189,1714642232824,-246.23346827,0.00012998,2]
[325246190,1714642232835,-5262.48961046,0.00012998,2]
[325246191,1714642232845,-155.0,0.00012998,2]
[325246192,1714642232855,-262.34103852,0.00012998,2]
[325246193,1714642232869,-220.46123253,0.00012998,2]
[325246194,1714642232878,-502.51593617,0.00012998,2]
[325246195,1714642232889,-833.80683836,0.00012998,2]
[325246196,1714642232899,-621.3996016,0.00012998,2]
[325246197,1714642232910,-1839.92978232,0.00012998,2]
[325246198,1714642232920,-236.89551413,0.00012998,2]
[325246199,1714642232929,-644.18053548,0.00012998,2]
[325246200,1714642232941,-545.8933463,0.00012998,2]
[325246201,1714642232951,-4444.58542679,0.00012998,2]
[325246202,1714642232960,-348.01793411,0.00012998,2]
[325246203,1714642232970,-325.23660578,0.00012998,2]
[325246204,1714642232979,-161.4418084,0.00012998,2]
[325246205,1714642232989,-155.16197539,0.00012998,2]
[325246206,1714642232998,-1039.85490489,0.00012998,2]
[325246207,1714642233008,-6264.69032311,0.00012999,2]
[325246208,1714642233017,-150.01,0.00012999,2]
[325246209,1714642233028,-1043.91275867,0.00012999,2]
[325246210,1714642233037,-504.0,0.00013,2]
[325246211,1714642233047,-597487.92993329,0.00013,2]
[325246212,1714642233059,-818.3624996,0.00013,2]
[325246213,1714642233070,-267.23393513,0.00013,2]
[325246214,1714642233100,-112093.33498541,0.00013,2]
[325246251,1714642237716,-208.71545542,0.0001299,2]
[325246253,1714642237727,-208.71545542,0.0001299,2]
[325246255,1714642237736,-161.92908916,0.00013,2]
[325246260,1714642237775,-376.42173265,0.00013,2]
[325246262,1714642237787,-839.21792559,0.00013,2]
[325246264,1714642237798,-1535.89620016,0.00013,2]
[325246268,1714642237836,-31052.49999999,0.00013,2]
[325246269,1714642237999,-3478.42757392,0.00013,2]
[325246270,1714642238011,-885.30001992,0.00013,2]
[325246271,1714642238022,-267.4029094,0.00013,2]
[325246275,1714642239948,-44149.84741515,0.00013,2]
[325246276,1714642239959,-3184.78810981,0.00013,2]
[325246277,1714642239970,-930.0,0.00013,2]
[325246278,1714642239986,-362.17948701,0.00013,2]
[325246279,1714642239998,-626.59166763,0.00013,2]
[325246280,1714642240010,-880.54686907,0.00013,2]
[325246281,1714642240021,-300.25019249,0.00013,2]
[325246282,1714642240034,-12047.59953457,0.00013,2]
[325246283,1714642240073,-332.6855526,0.00013,2]
[325246284,1714642240084,-135615.39501994,0.00013,2]
[325246285,1714642240098,-1225.71315657,0.00013,2]
[325246286,1714642240110,-745.83403878,0.00013,2]
[325246287,1714642240210,-1397.40187114,0.00013,2]
[325246288,1714642240275,-511.81449438,0.00013,2]
[325246289,1714642240286,-33393.84789505,0.00013,2]
[325246290,1714642240297,-310.31,0.00013,2]
[325246291,1714642240308,-2900.7399,0.00013,2]
[325246292,1714642240319,-9255.66764001,0.00013,2]
[325246293,1714642240331,-664.35000011,0.00013,2]
[325246294,1714642240450,-262.05324534,0.00013,2]
[325246295,1714642240467,-6123.93611893,0.00013,2]
[325246296,1714642240476,-10257.58971093,0.00013,2]
[325246306,1714642243120,-661.3131406,0.00013,2]
[325246309,1714642243763,-655.16092701,0.00013,2]
[325246310,1714642243779,-62052.74008314,0.00013,2]
[325246311,1714642243800,-9207.05976,0.00013,2]
[325246312,1714642243836,-2037.2848983,0.00013,2]
[325246313,1714642243848,-16592.93278439,0.00013,2]
[325246314,1714642243863,-369.9577136,0.00013,2]
[325246315,1714642243875,-569.185,0.00013,2]
[325246336,1714642245933,-329.87442224,0.000129,2]
[325246337,1714642245943,-126.06926326,0.00013,2]
[325246338,1714642332548,157.68,0.0001611,15]
[325246339,1714642728361,3000.0,0.00025,120]
[325246340,1714642910233,157.68,0.0001611,15]
[325246341,1714643104349,150.0,0.00010993,2]
[325246342,1714643202060,-642.0540596,0.00011285,2]
[325246343,1714643202083,-408.81148644,0.00011286,2]
[325246344,1714643202106,-499.72116278,0.00011287,2]
[325246345,1714643202132,-521.0,0.00011288,2]
[325246346,1714643202158,-881.19329118,0.00011289,2]
[325246348,1714643426696,157.68,0.0001611,15]
[325246349,1714643432768,-416.43430232,0.00011431,2]
[325246350,1714643432777,-150.0,0.00011432,2]
[325246351,1714643432787,-250.0,0.00011453,2]
[325246352,1714643432797,-2136.33569768,0.00011477,2]
[325246353,1714643432809,-311.4463232,0.00011477,2]
[325246354,1714643432838,-2815.69181693,0.00011477,2]
[325246355,1714643432847,-1000.0,0.00011478,2]
[325246356,1714643432857,-3879.85,0.00011503,2]
[325246357,1714643432866,-163.18,0.00011503,2]
[325246358,1714643432876,-250.0,0.00011506,2]
[325246359,1714643432885,-1349.27,0.00011531,2]
[325246360,1714643432895,-225.29,0.00011536,2]
[325246361,1714643432905,-289.05,0.00011591,2]
[325246362,1714643432914,-443.65694989,0.00011591,2]
[325246363,1714643432925,-2411.02305011,0.00011591,2]
[325246364,1714643432934,-161.61,0.00011646,2]
[325246365,1714643432943,-678.81544369,0.00011698,2]
[325246366,1714643432953,-161.61,0.00011747,2]
[325246367,1714643432962,-165.16,0.00011833,2]
[325246368,1714643432971,-161.61,0.00011848,2]
[325246369,1714643432981,-161.61,0.0001195,2]
[325246371,1714643432990,-161.61,0.00012051,2]
[325246372,1714643432999,-161.61,0.00012152,2]
[325246373,1714643433008,-161.61,0.00012253,2]
[325246374,1714643433018,-1300.0,0.000126,4]
[325246375,1714643433027,-257.05358802,0.00012608,2]
[325246376,1714643433036,-2600.0,0.000127,4]
[325246377,1714643433047,-150.0,0.00012734,2]
[325246379,1714643433056,-3900.0,0.000128,4]
[325246381,1714643433065,-3448.95226355,0.0001289,2]
[325246382,1714643433074,-200.0,0.00012895,2]
[325246384,1714643433083,-1000.0,0.00012895,2]
[325246385,1714643433092,-200.0,0.00012896,2]
[325246386,1714643433101,-1000.0,0.00012896,2]